{"text_format":"1","workbook":"xlsx","n_sheets":2,"sheets":["Demo stoch","Env stoch"],"not_rendered":{"charts":6,"images":0,"macros":1,"external_links":0,"defined_names":1,"comments":0,"pivot_tables":0},"unopened":[],"bounds":{"document_bytes":16777216,"sheet_cells":100000,"rows_first":2000,"rows_last":500,"rows_between":2000,"halvings":0,"cell_chars":16384,"cell_head_chars":4096},"cells_cut":0,"cells_raw":0,"read":"whole","date_system":"1900"}

{"sheet":"Demo stoch","index":0,"n_rows":211,"n_cols":35,"rows_kept":211,"cut":false,"hidden":false,"merged":[]}
["DEMOGRAPHIC STOCHASTICITY",null,null,null,"Definition: variation in average survivorship and reproduction"]
[null,null,null,null,"that occurs because a population is made up of an integer "]
["Survival rate",0.3,null,null,"number of individuals."]
["Birth rate",0.2]
[null,null,null,null,null,null,null,null,null,null,null,null,null,"Simulation: 200 trials",null,null,null,null,"Simulation: Summary"]
["Small population (N = 10)",null,null,null,null,null,"Large population (N = 100)",null,null,null,null,null,null,"Small population (N = 10)",null,"Large population (N = 100)",null,null,"Small population (N = 10)",null,null,null,"Large population (N = 100)"]
["Individual","Random #","Survive?","Random #","Births?",null,"Individual","Random #","Survive?","Random #","Births?",null,"Trial","Total survivors","Total births","Total survivors","Total births",null,"# Survivors","Frequency","# Births","Frequency","# Survivors","Frequency","# Births","Frequency",null,null,null,null,null,null,null,null,"Point #1: Demographic stochasticity results in more variation in outcomes in small populations."]
[1,null,null,null,null,null,1,null,null,null,null,null,1,null,null,null,null,null,0,null,0,null,0,null,0,null,null,null,null,null,null,null,null,null,"This effect can lead to increased extinction risk by nothing more than random chance."]
[2,null,null,null,null,null,2,null,null,null,null,null,2,null,null,null,null,null,1,null,1,null,1,null,1]
[3,null,null,null,null,null,3,null,null,null,null,null,3,null,null,null,null,null,2,null,2,null,2,null,2]
[4,null,null,null,null,null,4,null,null,null,null,null,4,null,null,null,null,null,3,null,3,null,3,null,3]
[5,null,null,null,null,null,5,null,null,null,null,null,5,null,null,null,null,null,4,null,4,null,4,null,4]
[6,null,null,null,null,null,6,null,null,null,null,null,6,null,null,null,null,null,5,null,5,null,5,null,5]
[7,null,null,null,null,null,7,null,null,null,null,null,7,null,null,null,null,null,6,null,6,null,6,null,6]
[8,null,null,null,null,null,8,null,null,null,null,null,8,null,null,null,null,null,7,null,7,null,7,null,7]
[9,null,null,null,null,null,9,null,null,null,null,null,9,null,null,null,null,null,8,null,8,null,8,null,8]
[10,null,null,null,null,null,10,null,null,null,null,null,10,null,null,null,null,null,9,null,9,null,9,null,9]
[null,null,null,"Survivors","Births",null,11,null,null,null,null,null,11,null,null,null,null,null,10,null,10,null,10,null,10]
[null,null,"Totals",null,null,null,12,null,null,null,null,null,12,null,null,null,null,null,null,null,null,null,11,null,11]
[null,null,null,null,null,null,13,null,null,null,null,null,13,null,null,null,null,null,"Probability",null,null,null,12,null,12]
[null,null,null,null,null,null,14,null,null,null,null,null,14,null,null,null,null,null,0,null,null,null,13,null,13]
[null,null,null,null,null,null,15,null,null,null,null,null,15,null,null,null,null,null,1,null,null,null,14,null,14]
[null,null,null,null,null,null,16,null,null,null,null,null,16,null,null,null,null,null,2,null,null,null,15,null,15]
[null,null,null,null,null,null,17,null,null,null,null,null,17,null,null,null,null,null,3,null,null,null,16,null,16]
[null,null,null,null,null,null,18,null,null,null,null,null,18,null,null,null,null,null,4,null,null,null,17,null,17]
[null,null,null,null,null,null,19,null,null,null,null,null,19,null,null,null,null,null,5,null,null,null,18,null,18]
[null,null,null,null,null,null,20,null,null,null,null,null,20,null,null,null,null,null,6,null,null,null,19,null,19]
[null,null,null,null,null,null,21,null,null,null,null,null,21,null,null,null,null,null,7,null,null,null,20,null,20]
[null,null,null,null,null,null,22,null,null,null,null,null,22,null,null,null,null,null,8,null,null,null,21,null,21]
[null,null,null,null,null,null,23,null,null,null,null,null,23,null,null,null,null,null,9,null,null,null,22,null,22]
[null,null,null,null,null,null,24,null,null,null,null,null,24,null,null,null,null,null,10,null,null,null,23,null,23]
[null,null,null,null,null,null,25,null,null,null,null,null,25,null,null,null,null,null,null,null,null,null,24,null,24]
[null,null,null,null,null,null,26,null,null,null,null,null,26,null,null,null,null,null,"Binomial",null,null,null,25,null,25]
[null,null,null,null,null,null,27,null,null,null,null,null,27,null,null,null,null,null,"# trials",10,null,null,26,null,26]
[null,null,null,null,null,null,28,null,null,null,null,null,28,null,null,null,null,null,"prob. success",{"$f":"B3","v":0.3},null,null,27,null,27]
[null,null,null,null,null,null,29,null,null,null,null,null,29,null,null,null,null,null,null,null,null,null,28,null,28]
[null,null,null,null,null,null,30,null,null,null,null,null,30,null,null,null,null,null,0,null,null,null,29,null,29]
[null,null,null,null,null,null,31,null,null,null,null,null,31,null,null,null,null,null,1,null,null,null,30,null,30]
[null,null,null,null,null,null,32,null,null,null,null,null,32,null,null,null,null,null,2,null,null,null,31,null,31]
[null,null,null,null,null,null,33,null,null,null,null,null,33,null,null,null,null,null,3,null,null,null,32,null,32]
[null,null,null,null,null,null,34,null,null,null,null,null,34,null,null,null,null,null,4,null,null,null,33,null,33]
[null,null,null,null,null,null,35,null,null,null,null,null,35,null,null,null,null,null,5,null,null,null,34,null,34]
[null,null,null,null,null,null,36,null,null,null,null,null,36,null,null,null,null,null,6,null,null,null,35,null,35]
[null,null,null,null,null,null,37,null,null,null,null,null,37,null,null,null,null,null,7,null,null,null,36,null,36]
[null,null,null,null,null,null,38,null,null,null,null,null,38,null,null,null,null,null,8,null,null,null,37,null,37]
[null,null,null,null,null,null,39,null,null,null,null,null,39,null,null,null,null,null,9,null,null,null,38,null,38]
[null,null,null,null,null,null,40,null,null,null,null,null,40,null,null,null,null,null,10,null,null,null,39,null,39]
[null,null,null,null,null,null,41,null,null,null,null,null,41,null,null,null,null,null,null,null,null,null,40,null,40]
[null,null,null,null,null,null,42,null,null,null,null,null,42,null,null,null,null,null,null,null,null,null,41,null,41]
[null,null,null,null,null,null,43,null,null,null,null,null,43,null,null,null,null,null,null,null,null,null,42,null,42]
[null,null,null,null,null,null,44,null,null,null,null,null,44,null,null,null,null,null,null,null,null,null,43,null,43]
[null,null,null,null,null,null,45,null,null,null,null,null,45,null,null,null,null,null,null,null,null,null,44,null,44]
[null,null,null,null,null,null,46,null,null,null,null,null,46,null,null,null,null,null,null,null,null,null,45,null,45,null,null,null,null,null,null,null,null,null,"Point #2: The binomial distribution can be used instead of simulations to estimate outcomes."]
[null,null,null,null,null,null,47,null,null,null,null,null,47,null,null,null,null,null,null,null,null,null,46,null,46,null,null,null,null,null,null,null,null,null,"This can be very handy for more sophistocated modeling."]
[null,null,null,null,null,null,48,null,null,null,null,null,48,null,null,null,null,null,null,null,null,null,47,null,47]
[null,null,null,null,null,null,49,null,null,null,null,null,49,null,null,null,null,null,null,null,null,null,48,null,48]
[null,null,null,null,null,null,50,null,null,null,null,null,50,null,null,null,null,null,null,null,null,null,49,null,49]
[null,null,null,null,null,null,51,null,null,null,null,null,51,null,null,null,null,null,null,null,null,null,50,null,50]
[null,null,null,null,null,null,52,null,null,null,null,null,52,null,null,null,null,null,null,null,null,null,51,null,51]
[null,null,null,null,null,null,53,null,null,null,null,null,53,null,null,null,null,null,null,null,null,null,52,null,52]
[null,null,null,null,null,null,54,null,null,null,null,null,54,null,null,null,null,null,null,null,null,null,53,null,53]
[null,null,null,null,null,null,55,null,null,null,null,null,55,null,null,null,null,null,null,null,null,null,54,null,54]
[null,null,null,null,null,null,56,null,null,null,null,null,56,null,null,null,null,null,null,null,null,null,55,null,55]
[null,null,null,null,null,null,57,null,null,null,null,null,57,null,null,null,null,null,null,null,null,null,56,null,56]
[null,null,null,null,null,null,58,null,null,null,null,null,58,null,null,null,null,null,null,null,null,null,57,null,57]
[null,null,null,null,null,null,59,null,null,null,null,null,59,null,null,null,null,null,null,null,null,null,58,null,58]
[null,null,null,null,null,null,60,null,null,null,null,null,60,null,null,null,null,null,null,null,null,null,59,null,59]
[null,null,null,null,null,null,61,null,null,null,null,null,61,null,null,null,null,null,null,null,null,null,60,null,60]
[null,null,null,null,null,null,62,null,null,null,null,null,62,null,null,null,null,null,null,null,null,null,61,null,61]
[null,null,null,null,null,null,63,null,null,null,null,null,63,null,null,null,null,null,null,null,null,null,62,null,62]
[null,null,null,null,null,null,64,null,null,null,null,null,64,null,null,null,null,null,null,null,null,null,63,null,63]
[null,null,null,null,null,null,65,null,null,null,null,null,65,null,null,null,null,null,null,null,null,null,64,null,64]
[null,null,null,null,null,null,66,null,null,null,null,null,66,null,null,null,null,null,null,null,null,null,65,null,65]
[null,null,null,null,null,null,67,null,null,null,null,null,67,null,null,null,null,null,null,null,null,null,66,null,66]
[null,null,null,null,null,null,68,null,null,null,null,null,68,null,null,null,null,null,null,null,null,null,67,null,67]
[null,null,null,null,null,null,69,null,null,null,null,null,69,null,null,null,null,null,null,null,null,null,68,null,68]
[null,null,null,null,null,null,70,null,null,null,null,null,70,null,null,null,null,null,null,null,null,null,69,null,69]
[null,null,null,null,null,null,71,null,null,null,null,null,71,null,null,null,null,null,null,null,null,null,70,null,70]
[null,null,null,null,null,null,72,null,null,null,null,null,72,null,null,null,null,null,null,null,null,null,71,null,71]
[null,null,null,null,null,null,73,null,null,null,null,null,73,null,null,null,null,null,null,null,null,null,72,null,72]
[null,null,null,null,null,null,74,null,null,null,null,null,74,null,null,null,null,null,null,null,null,null,73,null,73]
[null,null,null,null,null,null,75,null,null,null,null,null,75,null,null,null,null,null,null,null,null,null,74,null,74]
[null,null,null,null,null,null,76,null,null,null,null,null,76,null,null,null,null,null,null,null,null,null,75,null,75]
[null,null,null,null,null,null,77,null,null,null,null,null,77,null,null,null,null,null,null,null,null,null,76,null,76]
[null,null,null,null,null,null,78,null,null,null,null,null,78,null,null,null,null,null,null,null,null,null,77,null,77]
[null,null,null,null,null,null,79,null,null,null,null,null,79,null,null,null,null,null,null,null,null,null,78,null,78]
[null,null,null,null,null,null,80,null,null,null,null,null,80,null,null,null,null,null,null,null,null,null,79,null,79]
[null,null,null,null,null,null,81,null,null,null,null,null,81,null,null,null,null,null,null,null,null,null,80,null,80]
[null,null,null,null,null,null,82,null,null,null,null,null,82,null,null,null,null,null,null,null,null,null,81,null,81]
[null,null,null,null,null,null,83,null,null,null,null,null,83,null,null,null,null,null,null,null,null,null,82,null,82]
[null,null,null,null,null,null,84,null,null,null,null,null,84,null,null,null,null,null,null,null,null,null,83,null,83]
[null,null,null,null,null,null,85,null,null,null,null,null,85,null,null,null,null,null,null,null,null,null,84,null,84]
[null,null,null,null,null,null,86,null,null,null,null,null,86,null,null,null,null,null,null,null,null,null,85,null,85]
[null,null,null,null,null,null,87,null,null,null,null,null,87,null,null,null,null,null,null,null,null,null,86,null,86]
[null,null,null,null,null,null,88,null,null,null,null,null,88,null,null,null,null,null,null,null,null,null,87,null,87]
[null,null,null,null,null,null,89,null,null,null,null,null,89,null,null,null,null,null,null,null,null,null,88,null,88]
[null,null,null,null,null,null,90,null,null,null,null,null,90,null,null,null,null,null,null,null,null,null,89,null,89]
[null,null,null,null,null,null,91,null,null,null,null,null,91,null,null,null,null,null,null,null,null,null,90,null,90]
[null,null,null,null,null,null,92,null,null,null,null,null,92,null,null,null,null,null,null,null,null,null,91,null,91]
[null,null,null,null,null,null,93,null,null,null,null,null,93,null,null,null,null,null,null,null,null,null,92,null,92]
[null,null,null,null,null,null,94,null,null,null,null,null,94,null,null,null,null,null,null,null,null,null,93,null,93]
[null,null,null,null,null,null,95,null,null,null,null,null,95,null,null,null,null,null,null,null,null,null,94,null,94]
[null,null,null,null,null,null,96,null,null,null,null,null,96,null,null,null,null,null,null,null,null,null,95,null,95]
[null,null,null,null,null,null,97,null,null,null,null,null,97,null,null,null,null,null,null,null,null,null,96,null,96]
[null,null,null,null,null,null,98,null,null,null,null,null,98,null,null,null,null,null,null,null,null,null,97,null,97]
[null,null,null,null,null,null,99,null,null,null,null,null,99,null,null,null,null,null,null,null,null,null,98,null,98]
[null,null,null,null,null,null,100,null,null,null,null,null,100,null,null,null,null,null,null,null,null,null,99,null,99]
[null,null,null,null,null,null,null,null,null,"Survivors","Births",null,101,null,null,null,null,null,null,null,null,null,100,null,100]
[null,null,null,null,null,null,null,null,"Totals",null,null,null,102]
[null,null,null,null,null,null,null,null,null,null,null,null,103]
[null,null,null,null,null,null,null,null,null,null,null,null,104]
[null,null,null,null,null,null,null,null,null,null,null,null,105]
[null,null,null,null,null,null,null,null,null,null,null,null,106]
[null,null,null,null,null,null,null,null,null,null,null,null,107]
[null,null,null,null,null,null,null,null,null,null,null,null,108]
[null,null,null,null,null,null,null,null,null,null,null,null,109]
[null,null,null,null,null,null,null,null,null,null,null,null,110]
[null,null,null,null,null,null,null,null,null,null,null,null,111]
[null,null,null,null,null,null,null,null,null,null,null,null,112]
[null,null,null,null,null,null,null,null,null,null,null,null,113]
[null,null,null,null,null,null,null,null,null,null,null,null,114]
[null,null,null,null,null,null,null,null,null,null,null,null,115]
[null,null,null,null,null,null,null,null,null,null,null,null,116]
[null,null,null,null,null,null,null,null,null,null,null,null,117]
[null,null,null,null,null,null,null,null,null,null,null,null,118]
[null,null,null,null,null,null,null,null,null,null,null,null,119]
[null,null,null,null,null,null,null,null,null,null,null,null,120]
[null,null,null,null,null,null,null,null,null,null,null,null,121]
[null,null,null,null,null,null,null,null,null,null,null,null,122]
[null,null,null,null,null,null,null,null,null,null,null,null,123]
[null,null,null,null,null,null,null,null,null,null,null,null,124]
[null,null,null,null,null,null,null,null,null,null,null,null,125]
[null,null,null,null,null,null,null,null,null,null,null,null,126]
[null,null,null,null,null,null,null,null,null,null,null,null,127]
[null,null,null,null,null,null,null,null,null,null,null,null,128]
[null,null,null,null,null,null,null,null,null,null,null,null,129]
[null,null,null,null,null,null,null,null,null,null,null,null,130]
[null,null,null,null,null,null,null,null,null,null,null,null,131]
[null,null,null,null,null,null,null,null,null,null,null,null,132]
[null,null,null,null,null,null,null,null,null,null,null,null,133]
[null,null,null,null,null,null,null,null,null,null,null,null,134]
[null,null,null,null,null,null,null,null,null,null,null,null,135]
[null,null,null,null,null,null,null,null,null,null,null,null,136]
[null,null,null,null,null,null,null,null,null,null,null,null,137]
[null,null,null,null,null,null,null,null,null,null,null,null,138]
[null,null,null,null,null,null,null,null,null,null,null,null,139]
[null,null,null,null,null,null,null,null,null,null,null,null,140]
[null,null,null,null,null,null,null,null,null,null,null,null,141]
[null,null,null,null,null,null,null,null,null,null,null,null,142]
[null,null,null,null,null,null,null,null,null,null,null,null,143]
[null,null,null,null,null,null,null,null,null,null,null,null,144]
[null,null,null,null,null,null,null,null,null,null,null,null,145]
[null,null,null,null,null,null,null,null,null,null,null,null,146]
[null,null,null,null,null,null,null,null,null,null,null,null,147]
[null,null,null,null,null,null,null,null,null,null,null,null,148]
[null,null,null,null,null,null,null,null,null,null,null,null,149]
[null,null,null,null,null,null,null,null,null,null,null,null,150]
[null,null,null,null,null,null,null,null,null,null,null,null,151]
[null,null,null,null,null,null,null,null,null,null,null,null,152]
[null,null,null,null,null,null,null,null,null,null,null,null,153]
[null,null,null,null,null,null,null,null,null,null,null,null,154]
[null,null,null,null,null,null,null,null,null,null,null,null,155]
[null,null,null,null,null,null,null,null,null,null,null,null,156]
[null,null,null,null,null,null,null,null,null,null,null,null,157]
[null,null,null,null,null,null,null,null,null,null,null,null,158]
[null,null,null,null,null,null,null,null,null,null,null,null,159]
[null,null,null,null,null,null,null,null,null,null,null,null,160]
[null,null,null,null,null,null,null,null,null,null,null,null,161]
[null,null,null,null,null,null,null,null,null,null,null,null,162]
[null,null,null,null,null,null,null,null,null,null,null,null,163]
[null,null,null,null,null,null,null,null,null,null,null,null,164]
[null,null,null,null,null,null,null,null,null,null,null,null,165]
[null,null,null,null,null,null,null,null,null,null,null,null,166]
[null,null,null,null,null,null,null,null,null,null,null,null,167]
[null,null,null,null,null,null,null,null,null,null,null,null,168]
[null,null,null,null,null,null,null,null,null,null,null,null,169]
[null,null,null,null,null,null,null,null,null,null,null,null,170]
[null,null,null,null,null,null,null,null,null,null,null,null,171]
[null,null,null,null,null,null,null,null,null,null,null,null,172]
[null,null,null,null,null,null,null,null,null,null,null,null,173]
[null,null,null,null,null,null,null,null,null,null,null,null,174]
[null,null,null,null,null,null,null,null,null,null,null,null,175]
[null,null,null,null,null,null,null,null,null,null,null,null,176]
[null,null,null,null,null,null,null,null,null,null,null,null,177]
[null,null,null,null,null,null,null,null,null,null,null,null,178]
[null,null,null,null,null,null,null,null,null,null,null,null,179]
[null,null,null,null,null,null,null,null,null,null,null,null,180]
[null,null,null,null,null,null,null,null,null,null,null,null,181]
[null,null,null,null,null,null,null,null,null,null,null,null,182]
[null,null,null,null,null,null,null,null,null,null,null,null,183]
[null,null,null,null,null,null,null,null,null,null,null,null,184]
[null,null,null,null,null,null,null,null,null,null,null,null,185]
[null,null,null,null,null,null,null,null,null,null,null,null,186]
[null,null,null,null,null,null,null,null,null,null,null,null,187]
[null,null,null,null,null,null,null,null,null,null,null,null,188]
[null,null,null,null,null,null,null,null,null,null,null,null,189]
[null,null,null,null,null,null,null,null,null,null,null,null,190]
[null,null,null,null,null,null,null,null,null,null,null,null,191]
[null,null,null,null,null,null,null,null,null,null,null,null,192]
[null,null,null,null,null,null,null,null,null,null,null,null,193]
[null,null,null,null,null,null,null,null,null,null,null,null,194]
[null,null,null,null,null,null,null,null,null,null,null,null,195]
[null,null,null,null,null,null,null,null,null,null,null,null,196]
[null,null,null,null,null,null,null,null,null,null,null,null,197]
[null,null,null,null,null,null,null,null,null,null,null,null,198]
[null,null,null,null,null,null,null,null,null,null,null,null,199]
[null,null,null,null,null,null,null,null,null,null,null,null,200]
[]
[null,null,null,null,null,null,null,null,null,null,null,null,"Mean"]
[null,null,null,null,null,null,null,null,null,null,null,null,"Stdev"]
[null,null,null,null,null,null,null,null,null,null,null,null,"CV"]

{"sheet":"Env stoch","index":1,"n_rows":31,"n_cols":25,"rows_kept":31,"cut":false,"hidden":false,"merged":[]}
["ENVIRONMENTAL STOCHASTICITY",null,null,null,null,"Definition: unpredictable variation in environmental conditions (biotic and abiotic)"]
[null,null,null,null,null,"that can affect populations.",null,null,null,null,null,null,null,null,null,null,null,null,null,null,null,null,null,"Normal distribution"]
["b","d","R","λ",null,null,null,null,null,null,null,null,null,null,null,null,null,null,null,null,null,null,null,"Mean",{"$f":"B7","v":1.2000000000000002}]
[3,2.8,{"$f":"A4-B4","v":0.20000000000000018},{"$f":"1+C4","v":1.2000000000000002},null,null,null,null,null,null,null,null,null,null,null,null,null,null,null,null,null,null,null,"SD",{"$f":"C7","v":0.5}]
[]
["N(0)","λ","SD",null,null,null,null,null,null,null,null,null,null,null,null,null,null,null,null,null,null,null,null,0,{"$f":"NORMDIST(X6,$Y$3,$Y$4,FALSE)","v":4.4789060589685764E-2}]
[10,{"$f":"D4","v":1.2000000000000002},0.5,null,"Population model: Nt+1 = λ*Nt",null,null,null,null,null,null,null,null,null,null,null,null,null,null,null,null,null,null,0.1,{"$f":"NORMDIST(X7,$Y$3,$Y$4,FALSE)","v":7.0949185692462849E-2}]
[null,null,null,null,null,null,null,null,null,null,null,null,null,null,null,null,null,null,null,null,null,null,null,0.2,0.10798193302637601]
[null,"Year",null,null,null,null,null,null,null,null,null,null,null,null,null,null,null,null,null,null,null,null,null,0.3,0.15790031660178824]
["Trial",0,1,2,3,4,5,6,7,8,9,10,11,12,13,14,15,16,17,18,19,20,null,0.4,0.22184166935891106]
[1,null,null,null,null,null,null,null,null,null,null,null,null,null,null,null,null,null,null,null,null,null,null,0.5,0.29945493127148959]
[2,null,null,null,null,null,null,null,null,null,null,null,null,null,null,null,null,null,null,null,null,null,null,0.6,0.38837210996642568]
[3,null,null,null,null,null,null,null,null,null,null,null,null,null,null,null,null,null,null,null,null,null,null,0.7,0.48394144903828656]
[4,null,null,null,null,null,null,null,null,null,null,null,null,null,null,null,null,null,null,null,null,null,null,0.8,0.57938310552296535]
[5,null,null,null,null,null,null,null,null,null,null,null,null,null,null,null,null,null,null,null,null,null,null,0.9,0.66644920578359923]
["No stoch",null,null,null,null,null,null,null,null,null,null,null,null,null,null,null,null,null,null,null,null,null,null,1,0.73654028060664656]
[null,null,null,null,null,null,null,null,null,null,null,null,null,null,null,null,null,null,null,null,null,null,null,1.1000000000000001,0.78208538795091176]
[null,null,null,null,null,null,null,null,null,"Point #3: Environmental stochasticity can have substantial impacts",null,null,null,null,null,null,null,null,null,null,null,null,null,1.2,0.79788456080286541]
[null,null,null,null,null,null,null,null,null,"on population growth over time and influence extinction risk.",null,null,null,null,null,null,null,null,null,null,null,null,null,1.3,0.78208538795091187]
[null,null,null,null,null,null,null,null,null,null,null,null,null,null,null,null,null,null,null,null,null,null,null,1.4,0.73654028060664678]
[null,null,null,null,null,null,null,null,null,null,null,null,null,null,null,null,null,null,null,null,null,null,null,1.5,0.66644920578359945]
[null,null,null,null,null,null,null,null,null,null,null,null,null,null,null,null,null,null,null,null,null,null,null,1.6,0.57938310552296557]
[null,null,null,null,null,null,null,null,null,null,null,null,null,null,null,null,null,null,null,null,null,null,null,1.7,0.4839414490382869]
[null,null,null,null,null,null,null,null,null,null,null,null,null,null,null,null,null,null,null,null,null,null,null,1.8,0.38837210996642607]
[null,null,null,null,null,null,null,null,null,null,null,null,null,null,null,null,null,null,null,null,null,null,null,1.9,0.29945493127148998]
[null,null,null,null,null,null,null,null,null,null,null,null,null,null,null,null,null,null,null,null,null,null,null,2,0.22184166935891125]
[null,null,null,null,null,null,null,null,null,null,null,null,null,null,null,null,null,null,null,null,null,null,null,2.1,0.15790031660178835]
[null,null,null,null,null,null,null,null,null,null,null,null,null,null,null,null,null,null,null,null,null,null,null,2.2000000000000002,0.10798193302637613]
[null,null,null,null,null,null,null,null,null,null,null,null,null,null,null,null,null,null,null,null,null,null,null,2.2999999999999998,7.0949185692462974E-2]
[null,null,null,null,null,null,null,null,null,null,null,null,null,null,null,null,null,null,null,null,null,null,null,2.4,4.4789060589685861E-2]
[null,null,null,null,null,null,null,null,null,null,null,null,null,null,null,null,null,null,null,null,null,null,null,2.5,2.7165938467371267E-2]